fUSD/lending_fUSD_20250202
["ID","MTS","AMOUNT","RATE_DAILY","PERIOD"]
[351282973,1738505548072,-4605.95,0.00012602,2]
[351282974,1738505548082,-2359.63,0.00012602,2]
[351282975,1738505548092,-892.49,0.00012602,2]
[351282976,1738505548101,-871.23,0.00012602,2]
[351282977,1738505548111,-1094.04,0.00012602,2]
[351282978,1738505548120,-6442.67,0.00012602,2]
[351282979,1738505548130,-1297.27,0.00012602,2]
[351282980,1738505548139,-2052.81,0.00012602,2]
[351282981,1738505548149,-2655.71,0.00012602,2]
[351282982,1738505548158,-1885.94,0.00012602,2]
[351282983,1738505548168,-10441.41,0.00012602,2]
[351282984,1738505548177,-1553.08,0.00012602,2]
[351282985,1738505548186,-500.0,0.00012602,2]
[351282986,1738505548196,-1012.3,0.00012602,2]
[351282987,1738505548206,-500.0,0.00012602,2]
[351282988,1738505548215,-4514.04,0.00012602,2]
[351282989,1738505548225,-3003.61,0.00012602,2]
[351282990,1738505548234,-2902.94,0.00012602,2]
[351282991,1738505548245,-4716.6,0.00012602,2]
[351282992,1738505548255,-1964.45,0.00012602,2]
[351282993,1738505548264,-1593.35,0.00012602,2]
[351282994,1738505548273,-1637.22,0.00012602,2]
[351282995,1738505548283,-3416.51,0.00012602,2]
[351282996,1738505548292,-882.55,0.00012602,2]
[351282997,1738505548301,-500.0,0.00012602,2]
[351282998,1738505548310,-4127.67,0.00012602,2]
[351282999,1738505548320,-9172.95,0.00012602,2]
[351283000,1738505548330,-716.69,0.00012602,2]
[351283001,1738505548340,-3935.05,0.00012602,2]
[351283002,1738505548349,-994.51,0.00012602,2]
[351283003,1738505548359,-500.0,0.00012602,2]
[351283004,1738505548369,-500.0,0.00012602,2]
[351283005,1738505548379,-2231.33,0.00012602,2]
[351283006,1738505548388,-646.36,0.00012602,2]
[351283007,1738505548398,-7703.46,0.00012602,2]
[351283008,1738505548408,-612.75,0.00012602,2]
[351283009,1738505548417,-6130.86,0.00012602,2]
[351283010,1738505548427,-1008.29,0.00012602,2]
[351283011,1738505548436,-4888.75,0.00012602,2]
[351283012,1738505548446,-4468.98,0.00012602,2]
[351283013,1738505548455,-874.52,0.00012602,2]
[351283014,1738505548466,-7017.85,0.00012602,2]
[351283015,1738505548476,-7067.83,0.00012602,2]
[351283016,1738505548485,-504.51,0.00012602,2]
[351283017,1738505548496,-1694.57,0.00012602,2]
[351283018,1738505548506,-809.09,0.00012602,2]
[351283019,1738505548515,-1463.68,0.00012602,2]
[351283020,1738505548524,-500.0,0.00012602,2]
[351283021,1738505548534,-500.0,0.00012602,2]
[351283022,1738505548546,-957.1,0.00012602,2]
[351283023,1738505548556,-5901.35,0.00012602,2]
[351283024,1738505548567,-25450.62,0.00012602,2]
[351283025,1738505548576,-3194.77,0.00012602,2]
[351283026,1738505548587,-972.11,0.00012602,2]
[351283027,1738505548596,-500.0,0.00012602,2]
[351283028,1738505548605,-978.28,0.00012602,2]
[351283029,1738505548615,-1927.34,0.00012602,2]
[351283030,1738505548626,-1313.38,0.00012602,2]
[351283031,1738505548636,-2290.65,0.00012602,2]
[351283032,1738505548645,-1822.98,0.00012602,2]
[351283033,1738505548654,-778.33,0.00012602,2]
[351283034,1738505548663,-2811.74,0.00012602,2]
[351283035,1738505548672,-544.91223267,0.00012602,2]
[351283036,1738505548681,-4241.49,0.00012602,2]
[351283037,1738505548691,-2753.15,0.00012602,2]
[351283038,1738505548700,-3179.79,0.00012602,2]
[351283039,1738505548713,-11875.49,0.00012602,2]
[351283040,1738505548723,-590.79,0.00012602,2]
[351283041,1738505548733,-500.0,0.00012602,2]
[351283042,1738505548743,-2422.99,0.00012602,2]
[351283043,1738505548751,-1805.01,0.00012602,2]
[351283044,1738505548762,-8941.69,0.00012602,2]
[351283045,1738505548772,-1720.61,0.00012602,2]
[351283046,1738505548781,-890.83,0.00012602,2]
[351283047,1738505548790,-500.0,0.00012602,2]
[351283048,1738505548800,-500.0,0.00012602,2]
[351283049,1738505548809,-924.98,0.00012602,2]
[351283050,1738505548819,-2796.09,0.00012602,2]
[351283051,1738505548828,-753.96,0.00012602,2]
[351283052,1738505548837,-1515.55,0.00012602,2]
[351283053,1738505548846,-500.0,0.00012602,2]
[351283054,1738505548856,-8022.15,0.00012602,2]
[351283055,1738505548866,-1171.94,0.00012602,2]
[351283056,1738505548875,-500.0,0.00012602,2]
[351283057,1738505548884,-741.26,0.00012602,2]
[351283058,1738505548893,-1314.16,0.00012602,2]
[351283059,1738505548903,-500.0,0.00012602,2]
[351283060,1738505548912,-2827.17,0.00012602,2]
[351283061,1738505548922,-596.08,0.00012602,2]
[351283062,1738505548932,-2587.99,0.00012602,2]
[351283063,1738505548942,-500.0,0.00012602,2]
[351283064,1738505548951,-770.44,0.00012602,2]
[351283065,1738505548960,-3707.36,0.00012602,2]
[351283066,1738505548970,-651.22,0.00012602,2]
[351283067,1738505548979,-500.0,0.00012602,2]
[351283068,1738505548988,-465.76576334,0.00012602,2]
[351283069,1738505548999,-1020.01,0.00012726,2]
[351283070,1738505549008,-500.0,0.00012739,2]
[351283071,1738505549018,-559.46,0.00012739,2]
[351283072,1738505549027,-426.29388469,0.00012739,2]
[351283073,1738505549036,-803.7,0.00012739,2]
[351283074,1738505549045,-500.0,0.00012739,2]
[351283075,1738505549055,-439.86630605,0.00012739,2]
[351283076,1738505549064,-500.0,0.00012739,2]
[351283077,1738505549073,-801.06,0.00012739,2]
[351283078,1738505549083,-500.0,0.00012739,2]
[351283079,1738505549092,-158.93769994,0.00012739,2]
[351283080,1738505549101,-773.23,0.00012739,2]
[351283081,1738505549111,-500.0,0.00012739,2]
[351283082,1738505549120,-759.9,0.00012739,2]
[351283083,1738505549129,-1260.15,0.00012739,2]
[351283084,1738505549139,-589.03,0.00012739,2]
[351283085,1738505549148,-500.0,0.00012739,2]
[351283086,1738505549157,-500.0,0.00012739,2]
[351283087,1738505549166,-500.0,0.00012739,2]
[351283088,1738505549176,-1063.41,0.00012739,2]
[351283089,1738505549185,-673.02,0.00012739,2]
[351283090,1738505549194,-500.0,0.00012739,2]
[351283091,1738505549203,-821.68,0.00012739,2]
[351283092,1738505549212,-549.88,0.00012739,2]
[351283093,1738505549221,-500.0,0.00012739,2]
[351283094,1738505549229,-703.15,0.00012739,2]
[351283095,1738505549237,-500.0,0.00012739,2]
[351283096,1738505549247,-828.9,0.00012739,2]
[351283097,1738505549256,-627.47,0.00012739,2]
[351283098,1738505549265,-731.11,0.00012739,2]
[351283099,1738505549273,-500.0,0.00012739,2]
[351283100,1738505549283,-500.0,0.00012739,2]
[351283101,1738505549292,-592.69,0.00012739,2]
[351283102,1738505549302,-625.97,0.00012739,2]
[351283103,1738505549311,-500.0,0.00012739,2]
[351283104,1738505549320,-500.0,0.00012739,2]
[351283105,1738505549330,-500.0,0.00012739,2]
[351283106,1738505549339,-661.86,0.00012739,2]
[351283107,1738505549350,-552.57,0.00012739,2]
[351283108,1738505549359,-3015.63,0.00012739,2]
[351283109,1738505549371,-342.27261283,0.00012739,2]
[351283110,1738505549381,-635.12,0.00012739,2]
[351283111,1738505549392,-1112.86,0.00012739,2]
[351283112,1738505549403,-511.08,0.00012739,2]
[351283113,1738505549413,-910.85,0.00012739,2]
[351283114,1738505549423,-500.0,0.00012739,2]
[351283115,1738505549433,-738.14,0.00012739,2]
[351283116,1738505549443,-1482.76,0.00012739,2]
[351283117,1738505549454,-500.0,0.00012739,2]
[351283118,1738505549464,-500.0,0.00012739,2]
[351283119,1738505549474,-545.77,0.00012739,2]
[351283120,1738505549484,-500.0,0.00012739,2]
[351283121,1738505549494,-735.2,0.00012739,2]
[351283122,1738505549504,-717.38,0.00012739,2]
[351283123,1738505549514,-500.0,0.00012739,2]
[351283124,1738505549524,-500.0,0.00012739,2]
[351283125,1738505549535,-2333.39,0.00012739,2]
[351283126,1738505549548,-618.28,0.00012739,2]
[351283127,1738505549558,-500.0,0.00012739,2]
[351283128,1738505549568,-2305.89,0.00012739,2]
[351283129,1738505549658,-703.3,0.00012739,2]
[351283130,1738505549695,-2217.46,0.00012739,2]
[351283131,1738505549705,-500.0,0.00012739,2]
[351283132,1738505549715,-573.42,0.00012739,2]
[351283133,1738505549725,-2053.36,0.00012739,2]
[351283134,1738505549735,-1106.04,0.00012739,2]
[351283135,1738505549745,-2139.13,0.00012739,2]
[351283136,1738505549755,-590.87375651,0.00012739,2]
[351283137,1738505549765,-500.0,0.00012739,2]
[351283138,1738505549775,-1316.15,0.00012739,2]
[351283139,1738505549785,-500.0,0.00012739,2]
[351283140,1738505549794,-500.0,0.00012739,2]
[351283141,1738505549803,-548.83,0.00012739,2]
[351283142,1738505549813,-553.21,0.00012739,2]
[351283143,1738505549822,-525.3,0.00012739,2]
[351283144,1738505549832,-500.0,0.00012739,2]
[351283145,1738505549841,-2325.54,0.00012739,2]
[351283146,1738505549851,-1109.74,0.00012739,2]
[351283147,1738505549861,-500.44,0.00012739,2]
[351283148,1738505549870,-681.73,0.00012739,2]
[351283149,1738505549880,-677.93,0.00012739,2]
[351283150,1738505549890,-513.34,0.00012739,2]
[351283151,1738505549900,-1154.2,0.00012739,2]
[351283152,1738505549910,-2022.69,0.00012739,2]
[351283153,1738505549920,-685.35,0.00012739,2]
[351283154,1738505549931,-500.0,0.00012739,2]
[351283155,1738505549941,-500.0,0.00012739,2]
[351283156,1738505549951,-500.0,0.00012739,2]
[351283157,1738505549962,-550.64,0.00012739,2]
[351283158,1738505549971,-1342.11,0.00012739,2]
[351283159,1738505549982,-500.0,0.00012739,2]
[351283160,1738505549991,-500.0,0.00012739,2]
[351283161,1738505550002,-2093.39,0.00012739,2]
[351283162,1738505550011,-880.18,0.00012739,2]
[351283163,1738505550021,-1643.92,0.00012739,2]
[351283164,1738505550031,-500.0,0.00012739,2]
[351283165,1738505550041,-793.33,0.00012739,2]
[351283166,1738505550050,-500.0,0.00012739,2]
[351283167,1738505550060,-500.0,0.00012739,2]
[351283168,1738505550070,-1232.16,0.00012739,2]
[351283169,1738505550080,-588.54,0.00012739,2]
[351283170,1738505550090,-500.0,0.00012739,2]
[351283171,1738505550100,-534.34,0.00012739,2]
[351283172,1738505550110,-538.87,0.00012739,2]
[351283173,1738505550120,-793.28,0.00012739,2]
[351283174,1738505550130,-500.0,0.00012739,2]
[351283175,1738505550140,-1592.88,0.00012739,2]
[351283176,1738505550150,-616.53,0.00012739,2]
[351283177,1738505550160,-500.0,0.00012739,2]
[351283178,1738505550170,-500.0,0.00012739,2]
[351283179,1738505550181,-1854.87,0.00012739,2]
[351283180,1738505550191,-1690.33,0.00012739,2]
[351283181,1738505550202,-500.0,0.00012739,2]
[351283182,1738505550211,-500.0,0.00012739,2]
[351283183,1738505550221,-534.43,0.00012739,2]
[351283184,1738505550231,-500.0,0.00012739,2]
[351283185,1738505550242,-508.93,0.00012739,2]
[351283186,1738505550253,-637.72,0.00012739,2]
[351283187,1738505550263,-1150.84,0.00012739,2]
[351283188,1738505550273,-508.66,0.00012739,2]
[351283189,1738505550282,-500.0,0.00012739,2]
[351283190,1738505550292,-586.07,0.00012739,2]
[351283191,1738505550303,-800.25,0.00012739,2]
[351283192,1738505550313,-731.54,0.00012739,2]
[351283193,1738505550323,-1305.07,0.00012739,2]
[351283194,1738505550333,-1841.9,0.00012739,2]
[351283195,1738505550347,-734.22,0.00012739,2]
[351283196,1738505550357,-500.0,0.00012739,2]
[351283197,1738505550369,-1731.58,0.00012739,2]
[351283198,1738505550380,-573.1,0.00012739,2]
[351283199,1738505550391,-500.0,0.00012739,2]
[351283200,1738505550402,-500.0,0.00012739,2]
[351283201,1738505550412,-1366.78,0.00012739,2]
[351283202,1738505550423,-500.0,0.00012739,2]
[351283203,1738505550434,-1447.06,0.00012739,2]
[351283204,1738505550445,-955.56,0.00012739,2]
[351283205,1738505550455,-521.42,0.00012739,2]
[351283206,1738505550466,-854.39,0.00012739,2]
[351283207,1738505550476,-904.27,0.00012739,2]
[351283208,1738505550487,-2762.56,0.00012739,2]
[351283209,1738505550502,-500.0,0.00012739,2]
[351283210,1738505550514,-500.0,0.00012739,2]
[351283211,1738505550525,-666.98,0.00012739,2]
[351283212,1738505550536,-783.0,0.00012739,2]
[351283213,1738505550548,-500.0,0.00012739,2]
[351283214,1738505550559,-2104.01,0.00012739,2]
[351283215,1738505550570,-2287.85,0.00012739,2]
[351283216,1738505550581,-944.74,0.00012739,2]
[351283217,1738505550592,-738.27,0.00012739,2]
[351283218,1738505550604,-505.82,0.00012739,2]
[351283219,1738505550614,-1297.85,0.00012739,2]
[351283220,1738505550626,-1519.92,0.00012739,2]
[351283221,1738505550637,-500.0,0.00012739,2]
[351283222,1738505550648,-500.0,0.00012739,2]
[351283223,1738505550659,-500.0,0.00012739,2]
[351283224,1738505550670,-500.0,0.00012739,2]
[351283225,1738505550680,-643.77,0.00012739,2]
[351283226,1738505550690,-784.02,0.00012739,2]
[351283227,1738505550700,-529.45,0.00012739,2]
[351283228,1738505550710,-500.0,0.00012739,2]
[351283229,1738505550721,-470.98735355,0.00012739,2]
[351283230,1738505550731,-1418.55,0.00012739,2]
[351283231,1738505550741,-517.07,0.00012739,2]
[351283232,1738505550753,-2783.69,0.00012739,2]
[351283233,1738505550763,-1420.23,0.00012739,2]
[351283234,1738505550774,-2181.51,0.00012739,2]
[351283235,1738505550783,-1225.35,0.00012739,2]
[351283236,1738505550793,-500.0,0.00012739,2]
[351283237,1738505550803,-500.0,0.00012739,2]
[351283238,1738505550812,-500.0,0.00012739,2]
[351283239,1738505550822,-942.19,0.00012739,2]
[351283240,1738505550832,-507.86,0.00012739,2]
[351283241,1738505550842,-844.52,0.00012739,2]
[351283242,1738505550851,-1267.86,0.00012739,2]
[351283243,1738505550861,-1642.95,0.00012739,2]
[351283244,1738505550871,-632.5,0.00012739,2]
[351283245,1738505550882,-500.0,0.00012739,2]
[351283246,1738505550892,-717.96,0.00012739,2]
[351283247,1738505550902,-862.89,0.00012739,2]
[351283248,1738505550912,-500.0,0.00012739,2]
[351283249,1738505550923,-978.15,0.00012739,2]
[351283250,1738505550932,-1851.1,0.00012739,2]
[351283251,1738505550942,-591.76,0.00012739,2]
[351283252,1738505550952,-722.67,0.00012739,2]
[351283253,1738505550962,-500.0,0.00012739,2]
[351283254,1738505550972,-500.0,0.00012739,2]
[351283255,1738505550982,-520.38,0.00012739,2]
[351283256,1738505550993,-500.0,0.00012739,2]
[351283257,1738505551003,-500.0,0.00012739,2]
[351283258,1738505551013,-1708.12,0.00012739,2]
[351283259,1738505551023,-523.57,0.00012739,2]
[351283260,1738505551034,-500.0,0.00012739,2]
[351283261,1738505551045,-760.88,0.00012739,2]
[351283262,1738505551055,-500.0,0.00012739,2]
[351283263,1738505551066,-500.0,0.00012739,2]
[351283264,1738505551076,-238.7621622,0.00012739,2]
[351283265,1738505551086,-811.43,0.00012739,2]
[351283266,1738505551096,-1175.0,0.00012739,2]
[351283267,1738505551105,-1373.61,0.00012739,2]
[351283268,1738505551115,-1105.09,0.00012739,2]
[351283269,1738505551125,-747.24,0.00012739,2]
[351283270,1738505551135,-1419.66,0.00012739,2]
[351283271,1738505551145,-899.67,0.00012739,2]
[351283272,1738505551159,-500.0,0.00012739,2]
[351283273,1738505551169,-321.60592857,0.00012739,2]
[351283274,1738505551179,-814.85,0.00012739,2]
[351283275,1738505551189,-500.0,0.00012739,2]
[351283276,1738505551199,-967.34,0.00012739,2]
[351283277,1738505551208,-984.06,0.00012739,2]
[351283278,1738505551218,-709.72,0.00012739,2]
[351283279,1738505551227,-580.72,0.00012739,2]
[351283280,1738505551237,-500.0,0.00012739,2]
[351283281,1738505551247,-509.47,0.00012739,2]
[351283282,1738505551257,-1529.4,0.00012739,2]
[351283283,1738505551267,-1025.92,0.00012739,2]
[351283284,1738505551277,-500.0,0.00012739,2]
[351283285,1738505551286,-736.8,0.00012739,2]
[351283286,1738505551296,-396.60306573,0.00012739,2]
[351283287,1738505551306,-500.0,0.00012739,2]
[351283288,1738505551316,-500.0,0.00012739,2]
[351283289,1738505551326,-500.0,0.00012739,2]
[351283290,1738505551336,-500.0,0.00012739,2]
[351283291,1738505551346,-794.58,0.00012739,2]
[351283292,1738505551356,-515.19,0.00012739,2]
[351283293,1738505551366,-500.0,0.00012739,2]
[351283294,1738505551375,-551.09,0.00012739,2]
[351283295,1738505551385,-1457.11,0.00012739,2]
[351283296,1738505551395,-500.0,0.00012739,2]
[351283297,1738505551405,-848.94,0.00012739,2]
[351283298,1738505551415,-512.04,0.00012739,2]
[351283299,1738505551424,-1457.16,0.00012739,2]
[351283300,1738505551434,-562.76,0.00012739,2]
[351283301,1738505551443,-1032.24,0.00012739,2]
[351283302,1738505551454,-1061.96,0.00012739,2]
[351283303,1738505551464,-500.0,0.00012739,2]
[351283304,1738505551474,-1015.65,0.00012739,2]
[351283305,1738505551483,-679.22,0.00012739,2]
[351283306,1738505551494,-1177.9,0.00012739,2]
[351283307,1738505551503,-510.71,0.00012739,2]
[351283308,1738505551512,-500.0,0.00012739,2]
[351283309,1738505551522,-584.42,0.00012739,2]
[351283310,1738505551532,-1657.79,0.00012739,2]
[351283311,1738505551545,-1057.32,0.00012739,2]
[351283312,1738505551557,-500.0,0.00012739,2]
[351283313,1738505551566,-185.51233186,0.00012739,2]
[351283314,1738505551577,-500.0,0.00012739,2]
[351283315,1738505551587,-737.32,0.00012739,2]
[351283316,1738505551597,-865.79,0.00012739,2]
[351283317,1738505551606,-1316.4,0.00012739,2]
[351283318,1738505551616,-671.26,0.00012739,2]
[351283319,1738505551627,-751.62,0.00012739,2]
[351283320,1738505551636,-1011.53,0.00012739,2]
[351283321,1738505551646,-750.62,0.00012739,2]
[351283322,1738505551656,-500.0,0.00012739,2]
[351283323,1738505551667,-1248.28,0.00012739,2]
[351283324,1738505551677,-519.27,0.00012739,2]
[351283325,1738505551687,-500.0,0.00012739,2]
[351283326,1738505551697,-500.0,0.00012739,2]
[351283327,1738505551707,-775.41,0.00012739,2]
[351283328,1738505551716,-650.78,0.00012739,2]
[351283329,1738505551726,-500.0,0.00012739,2]
[351283330,1738505551735,-787.2,0.00012739,2]
[351283331,1738505551746,-500.0,0.00012739,2]
[351283332,1738505551756,-1398.59,0.00012739,2]
[351283333,1738505551765,-2098.34,0.00012739,2]
[351283334,1738505551775,-1717.3,0.00012739,2]
[351283335,1738505551784,-535.92,0.00012739,2]
[351283336,1738505551795,-500.0,0.00012739,2]
[351283337,1738505551804,-520.83,0.00012739,2]
[351283338,1738505551814,-500.0,0.00012739,2]
[351283339,1738505551824,-183.17098018,0.00012739,2]
[351283340,1738505551833,-1388.03,0.00012739,2]
[351283341,1738505551844,-696.21,0.00012739,2]
[351283342,1738505551853,-638.42,0.00012739,2]
[351283343,1738505551862,-1523.64,0.00012739,2]
[351283344,1738505551872,-1438.93,0.00012739,2]
[351283345,1738505551881,-500.0,0.00012739,2]
[351283346,1738505551891,-500.0,0.00012739,2]
[351283347,1738505551901,-1164.79,0.00012739,2]
[351283348,1738505551911,-500.0,0.00012739,2]
[351283349,1738505552233,-2008.34,0.00012739,2]
[351283350,1738505552249,-867.5,0.00012739,2]
[351283351,1738505552259,-500.0,0.00012739,2]
[351283352,1738505552270,-930.83,0.00012739,2]
[351283353,1738505552280,-1142.86,0.00012739,2]
[351283354,1738505552290,-1063.97,0.00012739,2]
[351283355,1738505552300,-5963.38,0.00012739,2]
[351283356,1738505552310,-632.65,0.00012739,2]
[351283357,1738505552321,-528.98,0.00012739,2]
[351283358,1738505552330,-939.46,0.00012739,2]
[351283359,1738505552341,-500.0,0.00012739,2]
[351283360,1738505552350,-1411.82,0.00012739,2]
[351283361,1738505552361,-2575.73,0.00012739,2]
[351283362,1738505552371,-500.0,0.00012739,2]
[351283363,1738505552381,-500.0,0.00012739,2]
[351283364,1738505552392,-4332.07,0.00012739,2]
[351283365,1738505552402,-500.0,0.00012739,2]
[351283366,1738505552412,-623.14,0.00012739,2]
[351283367,1738505552422,-808.47,0.00012739,2]
[351283368,1738505552432,-298.32792961,0.00012739,2]
[351283369,1738505552442,-500.0,0.00012739,2]
[351283370,1738505552451,-500.0,0.00012739,2]
[351283371,1738505552461,-1167.23,0.00012739,2]
[351283372,1738505552471,-1073.14,0.00012739,2]
[351283373,1738505552481,-1266.06,0.00012739,2]
[351283374,1738505552491,-1098.43,0.00012739,2]
[351283375,1738505552502,-1643.83,0.00012739,2]
[351283376,1738505552512,-2134.84,0.00012739,2]
[351283377,1738505552522,-7531.63,0.00012739,2]
[351283378,1738505552532,-636.47,0.00012739,2]
[351283379,1738505552543,-2806.74,0.00012739,2]
[351283380,1738505552555,-500.0,0.00012739,2]
[351283381,1738505552564,-4457.82,0.00012739,2]
[351283382,1738505552573,-500.0,0.00012739,2]
[351283383,1738505552583,-500.0,0.00012739,2]
[351283384,1738505552595,-1431.15,0.00012739,2]
[351283385,1738505552606,-500.0,0.00012739,2]
[351283386,1738505552616,-1068.36,0.00012739,2]
[351283387,1738505552627,-3317.75,0.00012739,2]
[351283388,1738505552638,-500.0,0.00012739,2]
[351283389,1738505552648,-500.0,0.00012739,2]
[351283390,1738505552657,-3236.23,0.00012739,2]
[351283391,1738505552667,-500.0,0.00012739,2]
[351283392,1738505552677,-500.0,0.00012739,2]
[351283393,1738505552688,-998.58,0.00012739,2]
[351283394,1738505552698,-649.19,0.00012739,2]
[351283395,1738505552708,-3603.07,0.00012739,2]
[351283396,1738505552718,-647.76,0.00012739,2]
[351283397,1738505552728,-518.71,0.00012739,2]
[351283398,1738505552738,-2773.67,0.00012739,2]
[351283399,1738505552749,-3478.77,0.00012739,2]
[351283400,1738505552759,-1377.07,0.00012739,2]
[351283401,1738505552769,-500.0,0.00012739,2]
[351283402,1738505552779,-1559.79,0.00012739,2]
[351283403,1738505552790,-993.51,0.00012739,2]
[351283404,1738505552800,-1353.14,0.00012739,2]
[351283405,1738505552810,-532.1,0.00012739,2]
[351283406,1738505552820,-1889.01,0.00012739,2]
[351283407,1738505552831,-5584.57,0.00012739,2]
[351283408,1738505552841,-628.58,0.00012739,2]
[351283409,1738505552851,-500.0,0.00012739,2]
[351283410,1738505552861,-500.0,0.00012739,2]
[351283411,1738505552871,-1416.56,0.00012739,2]
[351283412,1738505552881,-966.92,0.00012739,2]
[351283413,1738505552890,-1706.09,0.00012739,2]
[351283414,1738505552900,-820.07,0.00012739,2]
[351283415,1738505552910,-865.01,0.00012739,2]
[351283416,1738505552921,-555.56,0.00012739,2]
[351283417,1738505552930,-500.0,0.00012739,2]
[351283418,1738505552939,-6599.2,0.00012739,2]
[351283419,1738505552949,-4362.97,0.00012739,2]
[351283420,1738505552959,-3023.49,0.00012739,2]
[351283421,1738505552968,-1475.65,0.00012739,2]
[351283422,1738505552977,-786.41,0.00012739,2]
[351283423,1738505552986,-1337.09,0.00012739,2]
[351283424,1738505552997,-1205.96,0.00012739,2]
[351283425,1738505553006,-1903.11,0.00012739,2]
[351283426,1738505553015,-2817.82,0.00012739,2]
[351283427,1738505553025,-2360.45,0.00012739,2]
[351283428,1738505553035,-500.0,0.00012739,2]
[351283429,1738505553045,-583.26,0.00012739,2]
[351283430,1738505553055,-934.52,0.00012739,2]
[351283431,1738505553065,-1388.22,0.00012739,2]
[351283432,1738505553075,-2432.51,0.00012739,2]
[351283433,1738505553086,-2243.95,0.00012739,2]
[351283434,1738505553096,-609.67,0.00012739,2]
[351283435,1738505553107,-1262.46,0.00012739,2]
[351283436,1738505553117,-2572.68,0.00012739,2]
[351283437,1738505553128,-1950.74,0.00012739,2]
[351283438,1738505553139,-1181.19,0.00012739,2]
[351283439,1738505553150,-871.86,0.00012739,2]
[351283440,1738505553161,-1126.88,0.00012739,2]
[351283441,1738505553171,-541.6,0.00012739,2]
[351283442,1738505553183,-2805.0,0.00012739,2]
[351283443,1738505553192,-3490.69,0.00012739,2]
[351283444,1738505553202,-2478.61,0.00012739,2]
[351283445,1738505553212,-1886.99,0.00012739,2]
[351283446,1738505553223,-693.62,0.00012739,2]
[351283447,1738505553233,-1166.42,0.00012739,2]
[351283448,1738505553243,-4718.72,0.00012739,2]
[351283449,1738505553254,-646.83,0.00012739,2]
[351283450,1738505553264,-500.0,0.00012739,2]
[351283451,1738505553273,-1219.56,0.00012739,2]
[351283452,1738505553284,-1713.43,0.00012739,2]
[351283453,1738505553294,-500.0,0.00012739,2]
[351283454,1738505553306,-764.96,0.00012739,2]
[351283455,1738505553317,-742.31,0.00012739,2]
[351283456,1738505553327,-585.08,0.00012739,2]
[351283457,1738505553338,-5247.94,0.00012739,2]
[351283458,1738505553348,-1545.21,0.00012739,2]
[351283459,1738505553359,-5157.65,0.00012739,2]
[351283460,1738505553369,-2240.61,0.00012739,2]
[351283461,1738505553379,-1481.58,0.00012739,2]
[351283462,1738505553390,-535.67,0.00012739,2]
[351283463,1738505553401,-1485.26,0.00012739,2]
[351283464,1738505553411,-1399.19,0.00012739,2]
[351283465,1738505553420,-3226.98,0.00012739,2]
[351283466,1738505553430,-1311.36,0.00012739,2]
[351283467,1738505553440,-500.0,0.00012739,2]
[351283468,1738505553451,-5680.36,0.00012739,2]
[351283469,1738505553461,-2300.21,0.00012739,2]
[351283470,1738505553471,-500.0,0.00012739,2]
[351283471,1738505553482,-2521.42,0.00012739,2]
[351283472,1738505553492,-2782.57,0.00012739,2]